Cogmind - Beta 13 @@@ ROGUE MODE // 2024.04.01 @ 17:07:34 Player: Oldman Pu Result: Destroyed by Piercing Trap Performance ------------- Evolutions (0) 0 Regions Visited (2) 400 Robots Destroyed (26) 130 Value Destroyed (521) 521 Prototype IDs (0) 0 Alien Tech Used (0) 0 Bonus (0) 0 TOTAL SCORE: 1051 Bonus ------- None Cogmind --------- Core Integrity 0/250 Matter 367/500 Energy 198/200 System Corruption 0% Temperature Cool (0) Movement Rolling (120) Ox1 Location -10/Subcaves Parts ------- > --- POWER (1) -------- Subdweller Power Source > --- PROPULSION (2) --- Subdweller Monowheel > --- UTILITY (2) ------ Large Storage Unit High-capacity Matter Pod > --- WEAPON (2) ------- Riot Gun Medium Laser > --- INVENTORY (15) --- Ion Engine Subdweller Power Source Wheel Compact Wheel Improved Heat Sink Large Battery (200) Utility Shielding Scrap Shield Medium Laser Subdweller Laser Light Assault Rifle Subdweller Machine Gun Battle Cannon Battle Cannon Peak State ------------ > --- POWER ------------ Subdweller Power Source > --- PROPULSION ------- Wheel Subdweller Monowheel > --- UTILITY ---------- Large Storage Unit High-capacity Matter Pod > --- WEAPON ----------- Medium Laser Barrage Gun > --- INVENTORY -------- Ion Engine Ion Engine Wheel Compact Wheel Improved Heat Sink Large Battery Utility Shielding Scrap Shield Riot Gun Medium Laser Subdweller Laser Light Assault Rifle Subdweller Machine Gun Battle Cannon [Rating: 13] Favorites ----------- Power Ion Engine Engine Ion Engine Propulsion Wheel Wheel Wheel Utility High-capacity Matter Pod Storage High-capacity Matter Pod Weapon Medium Laser Energy Gun Medium Laser Ballistic Gun Light Assault Rifle Ballistic Cannon Battle Cannon Build | -11 -10 -10 ------- Run | Yrd Mat Sub Slots Evolved . | . . . Power . | . . . Propulsion . | . . . Utility . | . . . Weapon . | . . . Parts Attached 26 | 7 11 8 Power 3 | 1 1 1 Engine 3 | 1 1 1 Core . | . . . Reactor . | . . . Propulsion 9 | 2 5 2 Treads . | . . . Leg . | . . . Wheel 9 | 2 5 2 Hover . | . . . Flight . | . . . Utility 3 | 1 2 . Device . | . . . Storage 3 | 1 2 . Processor . | . . . Hackware . | . . . Protection . | . . . Artifact . | . . . Weapon 11 | 3 3 5 Energy Gun 3 | . 1 2 Energy Cannon . | . . . Ballistic Gun 7 | 3 2 2 Ballistic Cannon 1 | . . 1 Launcher . | . . . Special Weapon . | . . . Impact Weapon . | . . . Slashing Weapon . | . . . Piercing Weapon . | . . . Special Melee Weapon . | . . . Unidentified Prototypes . | . . . Parts Lost 7 | . 3 4 Power . | . . . Propulsion 4 | . 1 3 Utility . | . . . Weapon 3 | . 2 1 Highest Loss Streak 3 | . 3 1 To Critical Strikes . | . . . Average Slot Usage (%) 98 | . 96 99 Engine 14 | . 14 14 Wheel 27 | . 28 27 Storage 26 | . 25 28 Energy Gun 11 | . 7 16 Ballistic Gun 16 | . 20 11 Naked Turns . | . . . Heaviest Build 34 | 14 32 34 Greatest Support 32 | 32 32 30 Greatest Overweight (x) 3 | . 1 3 Average Overweight (x) . | . . 1 Largest Inventory Capacity 15 | 8 15 15 Average Capacity 12 | 6 10 15 Most Carried 15 | 1 9 15 Average Carried 9 | . 6 14 Final Capacity 15 | 8 15 15 Final Carried 15 | 1 9 15 Class Distribution -------------------- 100% | Mutant Dominant Class ---------------- Mutant | -10/Materials Mutant | -10/Subcaves Resources | -11 -10 -10 ----------- Run | Yrd Mat Sub Matter Collected 939 | 231 546 162 Remotely . | . . . Salvage Created 872 | . 635 237 Parts 58 | . 47 11 Haulers Intercepted 2 | . 2 . Recyclers Shooed . | . . . Parts Field Recycled . | . . . Retrieved Matter . | . . . Parts Self-Destructed 6 | . . 6 Prevented . | . . . Kills | -11 -10 -10 ------- Run | Yrd Mat Sub Combat Hostiles Destroyed 16 | . 11 5 Guns 16 | . 11 5 Classes Destroyed 8 | . 7 1 Worker 3 | . 3 . Hauler 2 | . 2 . Recycler 1 | . 1 . Operator 1 | . 1 . Watcher 3 | . 3 . Swarmer 6 | . 6 . Grunt 7 | . 5 2 Subdweller 3 | . . 3 Best Kill Streak 5 | . 5 2 Combat Bots Only 3 | . 3 2 Max Kills in Single Turn 1 | . 1 1 Gunslinging . | . . . Exploded . | . . . Melee . | . . . Uniques/NPCs Destroyed . | . . . Combat | -11 -10 -10 -------- Run | Yrd Mat Sub Hostile Shots Fired 99 | . 77 22 Missed 24 | . 20 4 Damage Taken 1018 | . 532 486 Core 254 | . 111 143 Absorbed by Shields . | . . . Core Remaining (%) 100 | 100 . . Volleys Fired 131 | . 65 66 Largest 2 | . 2 2 Hottest 100 | . 70 100 Shots Fired 256 | . 124 132 Gun 256 | . 124 132 Cannon . | . . . Launcher . | . . . Special . | . . . Kinetic 169 | . 108 61 Thermal 84 | . 16 68 Explosive . | . . . Electromagnetic 3 | . . 3 Robot Hit Streak 16 | . 9 16 Robot Miss Streak 5 | . 5 2 Penetration Max . | . . . Secondary Targets 2 | . 1 1 Max Gunslinging Chain 1 | . 1 1 Shots Hit Robots 101 | . 75 26 Core Hits 48 | . 36 12 Critical Kills 2 | . 2 . Critical Parts Destroyed 1 | . . 1 Critical Strikes 6 | . 3 3 Burn 3 | . 1 2 Destroy 3 | . 2 1 Melee Attacks . | . . . Impact . | . . . Slashing . | . . . Piercing . | . . . Sneak Attacks . | . . . Combat Hostiles . | . . . Follow-up Attacks . | . . . Damage Inflicted 1184 | . 801 383 Guns 1184 | . 801 383 Cannons . | . . . Explosions . | . . . Melee . | . . . Ramming . | . . . Kinetic 884 | . 702 182 Thermal 251 | . 99 152 Explosive . | . . . Electromagnetic 49 | . . 49 Impact . | . . . Slashing . | . . . Piercing . | . . . Highest Corruption . | . . . Average Corruption . | . . . Corruption Purged . | . . . Corruption Blocked . | . . . Overload Shots . | . . . Overflow Damage . | . . . Projectiles . | . . . Explosions . | . . . Melee . | . . . Knockbacks . | . . . Impact . | . . . Kinetic . | . . . Secondary . | . . . Self-Inflicted Damage . | . . . Shots . | . . . Rammed . | . . . Targets Rammed . | . . . Kicked . | . . . Crushed . | . . . Highest Temperature 154 | . 154 8 Average Temperature 48 | . 53 3 Received Heat Transfer 189 | . 138 51 Siege Activations . | . . . Robots Corrupted . | . . . Combat Hostiles . | . . . Parts Fried . | . . . Impact Corruptions . | . . . Robots Melted . | . . . Combat Hostiles . | . . . Parts Melted . | . . . Heat Transferred 962 | . 370 592 Parts Sabotaged . | . . . Parts Stolen . | . . . Parts Stripped . | . . . Power Chain Reactions . | . . . Alert | -11 -10 -10 ------- Run | Yrd Mat Sub Peak Influence 310 | . 310 . Initial . | . . . Average 147 | . 155 . Maximum Alert Level 1 | . 1 . Low Security (%) 83 | 100 82 . Level 1 16 | . 17 . Level 2 . | . . . Level 3 . | . . . Level 4 . | . . . Level 5 . | . . . High Security . | . . . Max Security . | . . . Squads Dispatched 1 | . 1 . Investigation . | . . . Extermination . | . . . Reinforcement 1 | . 1 . Assault . | . . . Garrison . | . . . Intercept . | . . . Searches Triggered . | . . . Construction Impeded . | . . . Haulers Reinforced . | . . . Active Scanning Responses . | . . . Cargo Convoy Interrupts . | . . . Stealth | -11 -10 -10 --------- Run | Yrd Mat Sub Distress Signals 2 | . 2 . Communications Jammed . | . . . Distress Signals . | . . . Times Spotted 23 | . 18 5 Peak Tracking Total 4 | . 4 2 Tactical Retreats 1 | . 1 . Traps | -11 -10 -10 ------- Run | Yrd Mat Sub Traps Triggered 3 | . . 3 Indirectly . | . . . Trap Hack Attempts . | . . . Triggered . | . . . Disarmed . | . . . Reprogrammed . | . . . Reused . | . . . Traps Extracted . | . . . Installed . | . . . Triggered . | . . . Machines | -11 -10 -10 ---------- Run | Yrd Mat Sub Machines Disabled . | . . . Max in Single Turn . | . . . Machines Repaired . | . . . Machines Dismantled . | . . . Machines Sabotaged . | . . . Overloaded Fab Kills . | . . . Hacking | -11 -10 -10 --------- Run | Yrd Mat Sub Machines Accessed 5 | . 5 . Terminals 5 | . 5 . Fabricators . | . . . Repair Stations . | . . . Recycling Units . | . . . Scanalyzers . | . . . Garrison Access . | . . . Total Hacks 9 | . 9 . Successful 2 | . 2 . Failed 7 | . 7 . Catastrophic . | . . . Database Lockouts . | . . . Manual . | . . . Terminals 9 | . 9 . Fabricators . | . . . Repair Stations . | . . . Recycling Units . | . . . Scanalyzers . | . . . Garrison Access . | . . . Terminal Hacks 2 | . 2 . Emergency Access Points 1 | . 1 . Locate Traps 1 | . 1 . Fabricator Hacks . | . . . Repair Station Hacks . | . . . Recycling Unit Hacks . | . . . Scanalyzer . | . . . Garrison Access Hacks . | . . . Unauthorized Hacks . | . . . Terminals . | . . . Fabricators . | . . . Repair Stations . | . . . Recycling Units . | . . . Scanalyzers . | . . . Garrison Access . | . . . Data Cores Recovered 1 | . 1 . Used 1 | . 1 . Hacking Detections 4 | . 4 . Full Trace Events 1 | . 1 . Feedback Events . | . . . Feedback Blocked . | . . . Robot Schematics Acquired . | . . . Robots Built . | . . . Authchips . | . . . Time . | . . . Total Robot Build Rating . | . . . Part Schematics Acquired . | . . . Parts Built . | . . . Authchips . | . . . Time . | . . . Total Part Build Rating . | . . . Parts Repaired . | . . . Time . | . . . Parts Recycled . | . . . Recycled Matter . | . . . Retrieved Matter . | . . . Retrieved Components . | . . . Parts Scanalyzed . | . . . Part Schematics Acquired . | . . . Parts Damaged . | . . . Bothacking | -11 -10 -10 ------------ Run | Yrd Mat Sub Used RIF Installer . | . . . Robots Hacked . | . . . Non-combat . | . . . Combat . | . . . Robot Hacks Applied . | . . . Relay Couplers Released . | . . . Fabnet Peak Effective % . | . . . Robots Rewired . | . . . Allies Hacked . | . . . Hacks Repelled . | . . . Allies | -11 -10 -10 -------- Run | Yrd Mat Sub Total Allies . | . . . Largest Group . | . . . Highest-Rated Group . | . . . Highest-Rated Ally . | . . . Total Orders . | . . . Ally Attacks . | . . . Total Damage . | . . . Kills . | . . . Allies Corrupted . | . . . Allies Melted . | . . . Intel | -11 -10 -10 ------- Run | Yrd Mat Sub Robot Analysis Total . | . . . Derelict Logs Recovered 1 | . . 1 Drone Launches . | . . . Drone Recoveries . | . . . Exploration | -11 -10 -10 ------------- Run | Yrd Mat Sub Turns Passed 1554 | 47 888 619 Spaces Moved 1082 | 42 642 398 Core 10 | 10 . . Treads . | . . . Legs . | . . . Wheels 1072 | 32 642 398 Hover . | . . . Flight . | . . . Fastest Speed 50 | 50 80 95 Average Speed 95 | 88 92 100 Slowest Speed 125 | 100 100 125 Overloaded Moves . | . . . Propulsion Burnouts . | . . . Robots Hopped . | . . . Cave-ins Triggered . | . . . Exploration Rate (%) 40 | 3 90 29 Regions Visited 2 Branch Regions 1 Pre-discovered Areas . | . . . Known Exits Taken . | . . . Unknown Exits Taken 2 | 1 1 . Scrap Searched 8 | . . 8 Spaces Dug . | . . . Terrain Destroyed . | . . . Melee . | . . . Projectile . | . . . AOE . | . . . Terrain Rammed . | . . . Walls Destroyed . | . . . Machines Disabled . | . . . Actions | -11 -10 -10 --------- Run | Yrd Mat Sub Total 1363 | 48 824 491 Wait 102 | . 94 8 Move 1080 | 41 641 398 Hop . | . . . Pick Up 17 | . 9 8 Fast Attach 8 | 6 1 1 Attach 6 | . 4 2 Detach . | . . . Swap 12 | 1 6 5 Drop 7 | . 4 3 Fire 131 | . 65 66 Melee . | . . . Ram . | . . . Kick . | . . . Crush . | . . . Escape Stasis . | . . . Rewire . | . . . Trap . | . . . Miscellaneous . | . . . Route ------- -11/Scrapyard -10/Materials (discovered 5 exits: [*Mat x3] / [*Min] / [*Sub]) -10/Subcaves (discovered 1 exit: Mat) History --------- Turn | Location | Event 8 | -11/Scrapyard | Discovered new exit (range 16) 48 | -11/Scrapyard | Entered Materials 161 | -10/Materials | Discovered new exit (range 16) 310 | -10/Materials | Build established: Mutant 347 | -10/Materials | Lost 3 parts (1n2w) 389 | -10/Materials | Discovered new exit (range 13) 475 | -10/Materials | Discovered new exit (range 7) 696 | -10/Materials | Discovered new exit (range 15) 926 | -10/Materials | Discovered new exit (range 7) 936 | -10/Materials | Entered Subcaves 995 | -10/Subcaves | Core integrity fell below 50% 1044 | -10/Subcaves | Identified exit to Materials 1216 | -10/Subcaves | Shifting Twisted Machinery released Sub. Optics 1221 | -10/Subcaves | Shifting Twisted Machinery released Sub. Machine Gun 1263 | -10/Subcaves | Shifting Twisted Machinery released Spk. Treads 1444 | -10/Subcaves | Core integrity fell below 20% 1555 | -10/Subcaves | Destroyed by Piercing Trap Last Messages --------------- 01299_ Acquired Sub. Monowheel. 01303_ Dropped Ion Engine. 01303_ Acquired Sub. Power Source. 01305_ Acquired 42 matter. 01324_ Acquired 14 matter. 01445_ Barrage Gun destroyed. 01446_ 6M-7D2(R) suffers critical hit (Burn). 01452_ 6M-7D2(R) destroyed. 01455_ Acquired 39 matter. 01486_ Acquired Battle Cannon. 01495_ Acquired 10 matter. 01504_ Acquired 13 matter. 01545_ Triggered Piercing Trap. 01545_ Spikes shoot up from the floor. 01545_ Critical hit (Impale). 01555_ Triggered Piercing Trap. 01555_ Spikes shoot up from the floor. 01555_ Critical hit (Impale). 01555_ Wheel destroyed. 01555_ Critical hit (Impale). Map ----- +----------------------------------------------------+ | ?????????????????????????????????????????????????? | | ?????????????????????????????????????????????????? | | ?????????????????????????????????????????????????? | | ?????????????????????????????????????????????????? | | ????????????????????????????????????????????????? | | #???????????????????????????????????????????????? | | #???????????????????????????????????????????????? | | #???????????????????????????????????????????????? | | #????????????????????????????????????????????????? | | ?????????????????????????????????????????????????? | | ###??????????????????????????????????????????????? | | #??????????????????????????????????????????????? | | #??????????????????????????????????????????????? | | #???????????????????????????????????????????????? | | #?????????????????????##????????????????????????? | | #?????????????????????# ????????????????????????? | | ??????????????????????? ????????????????????????? | | ???????????????????????# #??????????? ???????????? | | ??????????????????????? ????###??? ??????????? | | ???????????????????????# ?### ### ??????????? | | ???# ????????# ????????# ## ??????????? | | ??? #??????? ###????# ?????????? | | ??? ????????# #?### ?????????? | | ??? #?????# ## ## #??????????? | | ??? ##?????? #???????????? | | ?## ##???????????# @ #???????????? | | ?# ##??????????## ## #????????? | | ?# #??????????## ^ #?????????????????? | | ?# ?????????### ^ #?????????????????? | | ## #??####??### #?????????????????? | | # #??### ##?# ^##?????????????????? | | #?### #?# ##??????????????????? | | #?# #### #???????????????????? | | #?# # # #???????????????????? | | ### ### #???????????????????? | | ### ## #???????????????????? | | ### ### ##??## ##???????????????????? | | ###?## #?## ###????# #????????????????????? | | ?????###??#####??????##### ##????????????????????? | | ??????????????????????????##?????????????????????? | | ?????????????????????????????????????????????????? | | ?????????????????????????????????????????????????? | | ?????????????????????????????????????????????????? | | ?????????????????????????????????????????????????? | | ?????????????????????????????????????????????????? | | ?????????????????????????????????????????????????? | | ?????????????????????????????????????????????????? | | ?????????????????????????????????????????????????? | | ?????????????????????????????????????????????????? | | ?????????????????????????????????????????????????? | +----------------------------------------------------+ Best States ------------- Heat Dissipation 25 Energy Generation 15 Energy Capacity 250 Matter Stores 500 Matter Capacity 500 Sight Range 16 Terrain Scan Density 10 Evasion (%) 50 Item Schematics ----------------- None Robot Schematics ------------------ None Fabricated ------------ Nothing Alien Tech Used ----------------- None Achievements -------------- None Challenges ------------ None Game ------ Seed SlugStructuralStripper Manual? 0 Play Time 00:16:27 Cumulative 210.5 hours Start 2024.04.01 @ 16:51:37 End 2024.04.01 @ 17:07:34 Sessions 1 Manual Loads 0 Difficulty Rogue Special Mode None Game No. 163 Rogue 151 Adventurer 12 Explorer 0 Win Type - Total 1 Types 1/0/0/0/0/0/0/0/0 Lore% 28 Gallery% 44 Achievement% 32 Wizard Run 0 Options --------- Layout 1 ASCII 0 Keyboard 0 Movement Mouse Keybinds 0 Fullscreen 1 Font 32/SmallcapsGlow Map View 77x35 Zoom Use 0% Tactical HUD 1 Map Filters NONE Filters NONE Steam 1 RUN: 786c5d17-883a-454f-8055-df40a91b6415